fUST/lending_fUST_20260112
["ID","MTS","AMOUNT","RATE_DAILY","PERIOD"]
[401397178,1768180241536,-2579.17784983,0.00018196,2]
[401397179,1768180241546,-533.88981491,0.00018196,2]
[401397180,1768180241556,-978.099764,0.00018196,2]
[401397181,1768180241566,-978.099764,0.00018196,2]
[401397182,1768180241576,-978.099764,0.00018196,2]
[401397183,1768180241587,-978.099764,0.00018196,2]
[401397184,1768180241597,-4918.90775929,0.00018462,2]
[401397185,1768180241606,-704.3184,0.00018493,2]
[401397186,1768180241616,-151.0,0.000185,2]
[401397187,1768180241625,-3560.1216401,0.00018639,2]
[401397188,1768180241634,-200.0,0.00018645,2]
[401397189,1768180241648,-3922.74842876,0.00018645,2]
[401397190,1768180241658,-1295.402714,0.00018682,2]
[401397191,1768180241667,-32261.07,0.00018744,2]
[401397192,1768180241677,-2674.60743027,0.00018744,2]
[401397193,1768180241687,-553.64373807,0.00018744,2]
[401397194,1768180241697,-151.0,0.00018744,2]
[401397195,1768180241706,-244.549377,0.00018744,2]
[401397196,1768180241716,-259.948193,0.00018744,2]
[401397197,1768180241727,-259.948193,0.00018744,2]
[401397198,1768180241736,-259.948193,0.00018744,2]
[401397199,1768180241746,-259.948193,0.00018744,2]
[401397200,1768180241755,-282.97033037,0.00018873,2]
[401397201,1768180241765,-1131.88132148,0.00018873,2]
[401397202,1768180241774,-2546.73297333,0.00018873,2]
[401397203,1768180241783,-4527.52528592,0.00018873,2]
[401397204,1768180241793,-7074.25825925,0.00018873,2]
[401397205,1768180241802,-10186.93189332,0.00018873,2]
[401397206,1768180241811,-14872.6314784,0.00018886,2]
[401397207,1768180241820,-24997.203168,0.00018886,2]
[401397208,1768180241830,-303.10001603,0.000189,2]
[401397209,1768180241839,-1000.0,0.00018967,2]
[401397210,1768180241848,-20000.0,0.00019,2]
[401397211,1768180241857,-978.099764,0.00019043,2]
[401397212,1768180241866,-978.099764,0.00019043,2]
[401397213,1768180241875,-978.099764,0.00019043,2]
[401397214,1768180241884,-978.099764,0.00019043,2]
[401397215,1768180241895,-865.55630466,0.00019043,2]
[401397216,1768180241904,-3462.22521865,0.00019043,2]
[401397217,1768180241914,-7782.21673521,0.00019043,2]
[401397218,1768180241924,-303.10001603,0.00019089,2]
[401397219,1768180241933,-177.552931,0.00019178,2]
[401397220,1768180241943,-177.552931,0.00019178,2]
[401397221,1768180241953,-177.552931,0.00019178,2]
[401397222,1768180241961,-177.552931,0.00019178,2]
[401397223,1768180241971,-177.552931,0.00019178,2]
[401397224,1768180241980,-177.552931,0.00019178,2]
[401397225,1768180241990,-177.552931,0.00019178,2]
[401397226,1768180241999,-177.552931,0.00019178,2]
[401397227,1768180242009,-208.0,0.00019178,2]
[401397228,1768180242019,-4136.2157441,0.00019198,2]
[401397229,1768180242028,-3649.47,0.000192,2]
[401397230,1768180242037,-26846.55,0.000192,2]
[401397231,1768180242047,-151.0,0.000192,2]
[401397232,1768180242058,-5000.0,0.00019259,2]
[401397233,1768180242068,-269.89641914,0.00019273,2]
[401397234,1768180242077,-304.04513063,0.00019278,2]
[401397235,1768180242086,-22842.79611483,0.00019292,2]
[401397236,1768180242096,-2773.56790519,0.00019292,2]
[401397237,1768180242106,-574.12855637,0.00019292,2]
[401397238,1768180242116,-162.99,0.000193,2]
[401397239,1768180242125,-167.64,0.000193,2]
[401397240,1768180242135,-164.08,0.000193,2]
[401397241,1768180242146,-653.80807146,0.00019729,7]
[401397242,1768180242155,-2876.18991768,0.0001984,2]
[401397243,1768180242165,-595.37131296,0.0001984,2]
[401397244,1768180242174,-259.948193,0.00019866,2]
[401397245,1768180242183,-259.948193,0.00019866,2]
[401397246,1768180242192,-259.948193,0.00019866,2]
[401397247,1768180242201,-259.948193,0.00019866,2]
[401397248,1768180242211,-177.552931,0.00019866,2]
[401397249,1768180242220,-177.552931,0.00019866,2]
[401397250,1768180242229,-177.552931,0.00019866,2]
[401397251,1768180242239,-177.552931,0.00019866,2]
[401397252,1768180242248,-151.0,0.000199,2]
[401397253,1768180242257,-151.55000802,0.0002,2]
[401397254,1768180242266,-193.93,0.00020168,2]
[401397255,1768180242275,-597.1,0.00020315,2]
[401397256,1768180242284,-1041.66666667,0.00020363,2]
[401397257,1768180242294,-2982.60894464,0.00020388,2]
[401397258,1768180242303,-617.40005154,0.00020388,2]
[401397259,1768180242312,-4918.90775929,0.00020585,2]
[401397260,1768180242321,-151.0,0.000206,3]
[401397261,1768180242331,-151.0,0.000206,4]
[401397262,1768180242339,-653.80807146,0.00020813,8]
[401397263,1768180242349,-1000.0,0.00020864,2]
[401397264,1768180242358,-244.0,0.00020864,2]
[401397265,1768180242367,-3560.1216401,0.00020875,2]
[401397266,1768180242377,-151.0,0.00020912,2]
[401397267,1768180242390,-151.0,0.00020933,2]
[401397268,1768180242399,-151.0,0.00020933,2]
[401397269,1768180242408,-3092.96547559,0.00020936,2]
[401397270,1768180242417,-640.24385345,0.00020936,2]
[401397271,1768180242428,-978.099764,0.00020936,2]
[401397272,1768180242437,-978.099764,0.00020936,2]
[401397273,1768180242446,-978.099764,0.00020936,2]
[401397274,1768180242458,-978.099764,0.00020936,2]
[401397275,1768180242467,-301.44275384,0.00021273,2]
[401397276,1768180242476,-529.467,0.0002139,2]
[401397277,1768180242485,-178.052,0.0002139,2]
[401397278,1768180242494,-151.0,0.000214,4]
[401397279,1768180242503,-151.0,0.000214,3]
[401397280,1768180242511,-597.1,0.00021438,2]
[401397281,1768180242520,-151.0,0.00021481,2]
[401397282,1768180242529,-181.573329,0.00021481,2]
[401397283,1768180242539,-3207.40519818,0.00021484,2]
[401397284,1768180242547,-663.93287602,0.00021484,2]
[401397285,1768180242556,-5396.0,0.0002149,2]
[401397286,1768180242565,-5396.0,0.00021533,2]
[401397287,1768180242574,-193.93,0.00021697,2]
[401397288,1768180242584,-151.0,0.000218,4]
[401397289,1768180242593,-5000.0,0.0002187,2]
[401397290,1768180242602,-653.80807146,0.00021897,10]
[401397291,1768180242611,-168.72845665,0.000219,3]
[401397292,1768180242620,-3000.0,0.000219,2]
[401397293,1768180242629,-26846.55,0.000219,2]
[401397294,1768180242639,-177.552931,0.000219,2]
[401397295,1768180242648,-177.552931,0.000219,2]
[401397296,1768180242657,-177.552931,0.000219,2]
[401397297,1768180242666,-177.552931,0.000219,2]
[401397298,1768180242675,-3000.0,0.0002191,2]
[401397299,1768180242684,-704.3184,0.00021918,2]
[401397300,1768180242693,-151.0,0.00021918,2]
[401397301,1768180242703,-151.0,0.00021918,2]
[401397302,1768180242711,-189.468115,0.00021918,2]
[401397303,1768180242720,-151.0,0.00021918,2]
[401397304,1768180242730,-151.0,0.00021918,2]
[401397305,1768180242739,-151.0,0.00021918,2]
[401397306,1768180242747,-151.0,0.00021918,2]
[401397307,1768180242757,-259.707138,0.00021918,2]
[401397308,1768180242766,-151.0,0.00021918,2]
[401397309,1768180242775,-151.0,0.00021918,2]
[401397310,1768180242784,-189.77985,0.00021918,2]
[401397311,1768180242793,-189.77985,0.00021918,2]
[401397312,1768180242802,-189.77985,0.00021918,2]
[401397313,1768180242811,-189.77985,0.00021918,2]
[401397314,1768180242820,-189.77985,0.00021918,2]
[401397315,1768180242829,-189.77985,0.00021918,2]
[401397316,1768180242838,-189.77985,0.00021918,2]
[401397317,1768180242847,-189.77985,0.00021918,2]
[401397318,1768180242856,-151.0,0.00021918,2]
[401397319,1768180242865,-221.765393,0.00021918,2]
[401397320,1768180242874,-277.4352,0.00021918,2]
[401397321,1768180242883,-277.4352,0.00021918,2]
[401397322,1768180242893,-277.4352,0.00021918,2]
[401397323,1768180242902,-277.4352,0.00021918,2]
[401397324,1768180242911,-277.4352,0.00021918,2]
[401397325,1768180242920,-277.4352,0.00021918,2]
[401397326,1768180242930,-277.4352,0.00021918,2]
[401397327,1768180242939,-277.4352,0.00021918,2]
[401397329,1768180242948,-277.4352,0.00021918,2]
[401397331,1768180242957,-277.4352,0.00021918,2]
[401397333,1768180242966,-277.4352,0.00021918,2]
[401397335,1768180242975,-277.4352,0.00021918,2]
[401397336,1768180242984,-151.0,0.00021918,2]
[401397337,1768180242993,-216.477355,0.00021918,2]
[401397339,1768180243088,-216.477355,0.00021918,2]
[401397340,1768180243098,-216.477355,0.00021918,2]
[401397341,1768180243107,-216.477355,0.00021918,2]
[401397342,1768180243116,-216.477355,0.00021918,2]
[401397343,1768180243125,-216.477355,0.00021918,2]
[401397344,1768180243135,-216.477355,0.00021918,2]
[401397345,1768180243144,-216.477355,0.00021918,2]
[401397346,1768180243153,-216.477355,0.00021918,2]
[401397347,1768180243163,-216.477355,0.00021918,2]
[401397348,1768180243172,-216.477355,0.00021918,2]
[401397349,1768180243181,-216.477355,0.00021918,2]
[401397350,1768180243190,-151.0,0.00021918,2]
[401397351,1768180243200,-192.928076,0.00021918,2]
[401397352,1768180243209,-190.972972,0.00021918,2]
[401397353,1768180243218,-190.972972,0.00021918,2]
[401397354,1768180243228,-190.972972,0.00021918,2]
[401397355,1768180243237,-190.972972,0.00021918,2]
[401397356,1768180243246,-190.972972,0.00021918,2]
[401397357,1768180243256,-190.972972,0.00021918,2]
[401397358,1768180243266,-190.972972,0.00021918,2]
[401397359,1768180243275,-190.972972,0.00021918,2]
[401397360,1768180243284,-190.972972,0.00021918,2]
[401397361,1768180243294,-151.0,0.00021918,2]
[401397362,1768180243303,-151.0,0.00021918,2]
[401397363,1768180243312,-151.0,0.00021918,2]
[401397364,1768180243322,-151.0,0.00021918,2]
[401397365,1768180243331,-151.0,0.00021918,2]
[401397366,1768180243341,-151.0,0.00021918,2]
[401397367,1768180243350,-151.0,0.00021918,2]
[401397368,1768180243359,-151.0,0.00021918,2]
[401397369,1768180243369,-151.0,0.00021918,2]
[401397370,1768180243379,-151.0,0.00021918,2]
[401397371,1768180243393,-151.0,0.00021918,2]
[401397373,1768180243403,-151.0,0.00021918,2]
[401397374,1768180243412,-151.0,0.00021918,2]
[401397376,1768180243423,-232.376915,0.00021918,2]
[401397378,1768180243432,-582.663486,0.00021918,2]
[401397380,1768180243442,-582.663486,0.00021918,2]
[401397382,1768180243452,-582.663486,0.00021918,2]
[401397384,1768180243461,-582.663486,0.00021918,2]
[401397386,1768180243470,-582.663486,0.00021918,2]
[401397388,1768180243479,-582.663486,0.00021918,2]
[401397390,1768180243490,-582.663486,0.00021918,2]
[401397392,1768180243499,-582.663486,0.00021918,2]
[401397394,1768180243509,-582.663486,0.00021918,2]
[401397396,1768180243518,-582.663486,0.00021918,2]
[401397398,1768180243527,-582.663486,0.00021918,2]
[401397400,1768180243537,-582.663486,0.00021918,2]
[401397402,1768180243546,-582.663486,0.00021918,2]
[401397404,1768180243555,-582.663486,0.00021918,2]
[401397406,1768180243564,-582.663486,0.00021918,2]
[401397408,1768180243573,-582.663486,0.00021918,2]
[401397410,1768180243581,-303.360326,0.00021918,2]
[401397412,1768180243591,-303.360326,0.00021918,2]
[401397413,1768180243600,-303.360326,0.00021918,2]
[401397415,1768180243609,-303.360326,0.00021918,2]
[401397417,1768180243618,-303.360326,0.00021918,2]
[401397419,1768180243627,-303.360326,0.00021918,2]
[401397421,1768180243635,-303.360326,0.00021918,2]
[401397423,1768180243646,-303.360326,0.00021918,2]
[401397425,1768180243655,-303.360326,0.00021918,2]
[401397427,1768180243663,-303.360326,0.00021918,2]
[401397429,1768180243672,-303.360326,0.00021918,2]
[401397431,1768180243681,-303.360326,0.00021918,2]
[401397433,1768180243690,-151.0,0.00021918,2]
[401397434,1768180243699,-303.360326,0.00021918,2]
[401397436,1768180243710,-151.0,0.00021918,2]
[401397438,1768180243719,-303.360326,0.00021918,2]
[401397440,1768180243728,-171.590888,0.00021918,2]
[401397442,1768180243737,-303.360326,0.00021918,2]
[401397445,1768180243746,-303.360326,0.00021918,2]
[401397447,1768180243755,-151.0,0.00021918,2]
[401397449,1768180243764,-151.0,0.00021918,2]
[401397451,1768180243773,-151.0,0.00021918,2]
[401397453,1768180243782,-151.0,0.00021918,2]
[401397455,1768180243791,-151.0,0.00021918,2]
[401397457,1768180243800,-151.0,0.00021918,2]
[401397458,1768180243810,-151.0,0.00021918,2]
[401397460,1768180243819,-151.0,0.00021918,2]
[401397462,1768180243829,-151.0,0.00021918,2]
[401397464,1768180243838,-151.0,0.00021918,2]
[401397466,1768180243847,-151.0,0.00021918,2]
[401397468,1768180243856,-151.0,0.00021918,2]
[401397470,1768180243865,-151.0,0.00021918,2]
[401397472,1768180243874,-151.0,0.00021918,2]
[401397474,1768180243883,-209.953007,0.00021918,2]
[401397476,1768180243892,-151.0,0.00021918,2]
[401397478,1768180243901,-151.0,0.00021918,2]
[401397480,1768180243911,-151.0,0.00021918,2]
[401397482,1768180243919,-189.77985,0.00021918,2]
[401397484,1768180243928,-189.77985,0.00021918,2]
[401397486,1768180243937,-189.77985,0.00021918,2]
[401397487,1768180243946,-189.77985,0.00021918,2]
[401397489,1768180243956,-151.0,0.00021918,2]
[401397491,1768180243965,-277.4352,0.00021918,2]
[401397493,1768180243973,-277.4352,0.00021918,2]
[401397495,1768180243982,-277.4352,0.00021918,2]
[401397497,1768180243991,-277.4352,0.00021918,2]
[401397499,1768180244000,-216.477355,0.00021918,2]
[401397500,1768180244010,-216.477355,0.00021918,2]
[401397502,1768180244020,-216.477355,0.00021918,2]
[401397504,1768180244029,-216.477355,0.00021918,2]
[401397506,1768180244038,-259.948193,0.00021918,2]
[401397508,1768180244047,-259.948193,0.00021918,2]
[401397510,1768180244059,-259.948193,0.00021918,2]
[401397513,1768180244072,-259.948193,0.00021918,2]
[401397515,1768180244085,-303.360326,0.00021918,2]
[401397517,1768180244098,-303.360326,0.00021918,2]
[401397520,1768180244110,-303.360326,0.00021918,2]
[401397522,1768180244121,-303.360327,0.00021918,2]
[401397524,1768180244134,-978.099764,0.00021918,2]
[401397526,1768180244148,-978.099764,0.00021918,2]
[401397529,1768180244160,-978.099764,0.00021918,2]
[401397531,1768180244173,-978.099766,0.00021918,2]
[401397533,1768180244186,-3000.0,0.0002192,2]
[401397536,1768180244199,-3000.0,0.0002193,2]
[401397538,1768180244211,-3000.0,0.0002194,2]
[401397540,1768180244225,-151.0,0.0002194,2]
[401397543,1768180244238,-151.0,0.0002194,2]
[401397545,1768180244249,-189.77985,0.0002194,2]
[401397547,1768180244261,-189.77985,0.0002194,2]
[401397549,1768180244273,-189.77985,0.0002194,2]
[401397551,1768180244284,-189.77985,0.0002194,2]
[401397553,1768180244296,-3000.0,0.0002195,2]
[401397555,1768180244308,-3000.0,0.0002196,2]
[401397558,1768180244321,-3000.0,0.0002197,2]
[401397559,1768180244333,-151.0,0.0002197,2]
[401397561,1768180244343,-151.0,0.0002197,2]
[401397564,1768180244354,-151.0,0.0002197,2]
[401397566,1768180244366,-3000.0,0.0002198,2]
[401397568,1768180244377,-3000.0,0.0002199,2]
[401397570,1768180244393,-151.0,0.0002199,2]
[401397573,1768180244405,-277.4352,0.0002199,2]
[401397575,1768180244417,-277.4352,0.0002199,2]
[401397577,1768180244431,-277.4352,0.0002199,2]
[401397579,1768180244444,-277.4352,0.0002199,2]
[401397582,1768180244458,-3000.0,0.00022,2]
[401397584,1768180244472,-3649.47,0.00022,14]
[401397586,1768180244483,-3000.0,0.0002201,2]
[401397588,1768180244494,-3000.0,0.0002202,2]
[401397590,1768180244503,-216.477355,0.00022028,2]
[401397592,1768180244514,-216.477355,0.00022028,2]
[401397594,1768180244526,-216.477355,0.00022028,2]
[401397597,1768180244539,-216.477347,0.00022028,2]
[401397599,1768180244552,-259.948193,0.00022028,2]
[401397601,1768180244563,-259.948193,0.00022028,2]
[401397603,1768180244573,-259.948193,0.00022028,2]
[401397605,1768180244584,-259.94819,0.00022028,2]
[401397607,1768180244595,-190.972972,0.00022028,2]
[401397610,1768180244607,-190.972972,0.00022028,2]
[401397612,1768180244619,-190.972978,0.00022028,2]
[401397614,1768180244629,-177.552931,0.00022028,2]
[401397616,1768180244640,-151.0,0.00022028,2]
[401397618,1768180244650,-177.552931,0.00022028,2]
[401397620,1768180244661,-151.0,0.00022028,2]
[401397622,1768180244671,-177.552931,0.00022028,2]
[401397624,1768180244682,-151.0,0.00022028,2]
[401397626,1768180244693,-177.552935,0.00022028,2]
[401397628,1768180244703,-582.663486,0.00022028,2]
[401397630,1768180244715,-582.663486,0.00022028,2]
[401397632,1768180244726,-582.663486,0.00022028,2]
[401397634,1768180244737,-582.663496,0.00022028,2]
[401397636,1768180244748,-3000.0,0.0002203,2]
[401397639,1768180244759,-151.0,0.0002203,2]
[401397641,1768180244770,-3326.07919052,0.00022032,2]
[401397643,1768180244781,-688.49839244,0.00022032,2]
[401397645,1768180244792,-3000.0,0.0002204,2]
[401397647,1768180244804,-3000.0,0.0002205,2]
[401397650,1768180244815,-3000.0,0.0002206,2]
[401397652,1768180244826,-3000.0,0.0002207,2]
[401397654,1768180244837,-3000.0,0.0002208,2]
[401397656,1768180244848,-3000.0,0.0002209,2]
[401397658,1768180244860,-504.2564021,0.00022095,2]
[401397660,1768180244871,-177.31378459,0.00022095,2]
[401397662,1768180244882,-196.46008159,0.00022095,2]
[401397664,1768180244894,-3000.0,0.000221,2]
[401397666,1768180244905,-3000.0,0.0002211,2]
[401397668,1768180244917,-776.0,0.00022112,2]
[401397670,1768180244927,-3000.0,0.0002212,2]
[401397672,1768180244938,-3000.0,0.0002213,2]
[401397674,1768180244949,-151.0,0.0002213,2]
[401397677,1768180244960,-151.0,0.0002213,2]
[401397679,1768180244970,-189.77985,0.0002213,2]
[401397681,1768180244981,-189.77985,0.0002213,2]
[401397683,1768180244992,-189.77985,0.0002213,2]
[401397685,1768180245003,-189.779842,0.0002213,2]
[401397687,1768180245013,-3000.0,0.0002214,2]
[401397689,1768180245025,-3000.0,0.0002215,2]
[401397691,1768180245036,-3000.0,0.0002216,2]
[401397693,1768180245047,-3000.0,0.0002217,2]
[401397695,1768180245058,-3000.0,0.0002218,2]
[401397698,1768180245070,-3000.0,0.0002219,2]
[401397700,1768180245080,-3000.0,0.000222,2]
[401397702,1768180245091,-3000.0,0.0002221,2]
[401397704,1768180245102,-3000.0,0.0002222,2]
[401397706,1768180245113,-504.2564021,0.00022228,9]
[401397708,1768180245124,-3000.0,0.0002223,2]
[401397710,1768180245135,-3000.0,0.0002224,2]
[401397713,1768180245160,-3000.0,0.0002225,2]
[401397716,1768180245175,-776.0,0.00022255,2]
[401397718,1768180245189,-3000.0,0.0002226,2]
[401397721,1768180245202,-3000.0,0.0002227,2]
[401397723,1768180245216,-776.0,0.00022273,2]
[401397725,1768180245228,-3000.0,0.0002228,2]
[401397728,1768180245240,-3000.0,0.0002229,2]
[401397730,1768180245252,-3000.0,0.000223,2]
[401397748,1768180245414,-3000.0,0.0002231,2]
[401397751,1768180245425,-3000.0,0.0002232,2]
[401397754,1768180245434,-5085.760285,0.0002233,2]
[401397756,1768180245443,-504.2564021,0.00022361,17]
[401397757,1768180245452,-776.0,0.00022423,2]
[401397759,1768180245461,-776.0,0.00022448,2]
[401397761,1768180245470,-250.0,0.00022466,2]
[401397763,1768180245480,-505.006398,0.00022478,2]
[401397765,1768180245489,-504.2564021,0.00022494,25]
[401397767,1768180245499,-800.0,0.00022494,2]
[401397769,1768180245509,-597.1,0.00022561,2]
[401397771,1768180245519,-3449.14412057,0.0002258,2]
[401397773,1768180245529,-713.97283296,0.0002258,2]
[401397775,1768180245538,-504.2564021,0.00022627,32]
[401397777,1768180245548,-776.0,0.0002266,2]
[401397780,1768180245558,-151.0,0.000227,8]
[401397782,1768180245568,-4918.90775929,0.00022709,2]
[401397783,1768180245577,-776.0,0.00022734,2]
[401397785,1768180245586,-504.2564021,0.0002276,40]
[401397788,1768180245600,-168.0,0.00022782,2]
[401397790,1768180245610,-168.0,0.00022799,2]
[401397792,1768180245619,-151.0,0.000228,2]
[401397794,1768180245629,-778.0,0.000228,2]
[401397796,1768180245638,-168.0,0.00022805,2]
[401397798,1768180245648,-776.0,0.0002281,2]
[401397800,1768180245657,-155.5739919,0.00022853,5]
[401397802,1768180245667,-776.0,0.0002286,2]
[401397804,1768180245676,-776.0,0.00022871,2]
[401397806,1768180245685,-504.2564021,0.00022893,48]
[401397807,1768180245693,-776.0,0.00022894,2]
[401397809,1768180245703,-776.0,0.00022922,2]
[401397811,1768180245713,-1000.0,0.0002295,10]
[401397813,1768180245722,-492.0,0.0002295,10]
[401397815,1768180245731,-776.0,0.00022953,2]
[401397817,1768180245740,-653.80807146,0.00022981,11]
[401397819,1768180245750,-290670.05957663,0.00023,2]
[401397860,1768180246119,-454.23047744,0.000149,2]
[401397862,1768180246128,-778.0,0.000222,2]
[401397864,1768180246138,-4602.43707422,0.00023,2]
[401398276,1768180458170,155.0,5.98e-05,2]
[401398279,1768180718447,500.0,0.00030137,120]
[401398283,1768180832799,200.0,0.0003,120]
[401398285,1768180947692,200.0,0.0003,120]
[401398286,1768180963225,200.0,0.0003,120]
[401398295,1768181316131,200.0,8e-05,7]
[401398296,1768181347151,3630.64609513,0.0003,120]
[401398297,1768181370401,4924.6664634,0.0003,120]
[401398298,1768181405624,248.33540064,0.00030136,120]
[401398299,1768181405778,154.11,5e-05,2]
[401398301,1768181431088,163.67083254,0.00030136,120]
[401398302,1768181431384,87.696935,9e-05,2]
[401398324,1768181432593,-1109.603065,9e-05,2]
[401398326,1768181432603,-173.06360167,0.00013273,2]
[401398338,1768181432727,-333.60184896,0.00013273,2]
[401398340,1768181432737,-135.25540849,0.00013273,2]
[401398342,1768181432748,-364.74459151,0.00013273,2]
[401398345,1768181432757,-500.0,0.00013273,2]
[401398347,1768181432767,-500.0,0.00013273,2]
[401398349,1768181432776,-500.0,0.00013273,2]
[401398351,1768181432786,-160.87541448,0.00013273,2]
[401398353,1768181432795,-5000.0,0.00013699,2]
[401398355,1768181432805,-500.79965419,0.00013699,2]
[401398357,1768181432815,-500.0,0.00013699,2]
[401398359,1768181432825,-597.05305078,0.00013699,2]
[401398361,1768181432834,-500.0,0.00013699,2]
[401398362,1768181432843,-500.0,0.00013699,2]
[401398364,1768181432852,-500.0,0.00013699,2]
[401398366,1768181432862,-500.0,0.00013699,2]
[401398368,1768181432871,-500.0,0.00013699,2]
[401398370,1768181432880,-150.20495532,0.00013699,2]
[401398371,1768181432891,-509.03507883,0.00013699,2]
[401398372,1768181432900,-500.0,0.00013699,2]
[401398373,1768181432909,-1000.0,0.00013821,2]
[401398374,1768181432919,-1000.0,0.00013821,2]
[401398375,1768181432928,-1000.0,0.00013821,2]
[401398376,1768181432937,-1000.0,0.00013821,2]
[401398377,1768181432947,-115740.96089642,0.00013967,2]
[401398378,1768181432956,-180.1424185,0.00014247,2]
[401398379,1768181432965,-1000.0,0.00014247,2]
[401398380,1768181432974,-1000.0,0.00014247,2]
[401398381,1768181432983,-379.03607709,0.00014247,2]
[401398382,1768181432992,-1000.0,0.00014247,2]
[401398383,1768181433002,-673.58657364,0.00014247,2]
[401398384,1768181433012,-300.0,0.00014347,2]
[401398385,1768181433021,-300.0,0.00014347,2]
[401398386,1768181433031,-300.0,0.00014347,2]
[401398387,1768181433040,-300.0,0.00014347,2]
[401398388,1768181433050,-300.0,0.00014347,2]
[401398389,1768181433059,-300.0,0.00014347,2]
[401398390,1768181433068,-300.0,0.00014347,2]
[401398391,1768181433078,-300.0,0.00014347,2]
[401398392,1768181433087,-300.0,0.00014347,2]
[401398393,1768181433097,-300.0,0.00014347,2]
[401398394,1768181433106,-300.0,0.00014347,2]
[401398395,1768181433116,-300.0,0.00014347,2]
[401398396,1768181433125,-300.0,0.00014347,2]
[401398397,1768181433135,-300.0,0.00014347,2]
[401398398,1768181433146,-300.0,0.00014347,2]
[401398399,1768181433155,-600.0,0.00014347,2]
[401398400,1768181433165,-410.44373761,0.00014347,2]
[401398401,1768181433175,-1500.0,0.00014368,2]
[401398402,1768181433186,-1500.0,0.00014368,2]
[401398403,1768181433196,-1500.0,0.00014368,2]
[401398404,1768181433205,-1000.0,0.00014368,2]
[401398405,1768181433214,-5000.0,0.00014793,2]
[401398406,1768181433223,-208.05304982,0.00014795,2]
[401398407,1768181433233,-594.79530897,0.000149,2]
[401398408,1768181433242,-151.41015916,0.000149,2]
[401398409,1768181433251,-151.41015914,0.000149,2]
[401398410,1768181433260,-151.41015914,0.000149,2]
[401398411,1768181433270,-2000.0,0.00014916,2]
[401398412,1768181433279,-2000.0,0.00014916,2]
[401398413,1768181433288,-1000.0,0.00015,2]
[401398414,1768181433298,-1018.62930606,0.00015,2]
[401398415,1768181433308,-23788.45923694,0.00015,2]
[401398424,1768181438766,-500.0,0.00013966,2]
[401398425,1768181438776,-500.0,0.00013966,2]
[401398426,1768181438786,-500.0,0.00013966,2]
[401398427,1768181438796,-163.57242181,0.00013966,2]
[401398428,1768181438806,-5433.91599111,0.00013967,2]
[401398429,1768181438818,-4704.88075002,0.00013967,2]
[401398430,1768181438832,-2725.46203476,0.00013967,2]
[401398431,1768181438865,-88112.76485029,0.00013967,2]
[401398432,1768181438875,-13182.10352113,0.00014147,2]
[401398433,1768181438885,-5000.0,0.0001451,2]
[401398434,1768181438900,-10189.45546237,0.00015,2]
[401398435,1768181438910,-150.95375382,0.00015,2]
[401398436,1768181438921,-281.72736,0.00015068,2]
[401398437,1768181438932,-800.0,0.00015068,2]
[401398438,1768181438942,-189.83298909,0.00015273,2]
[401398439,1768181438952,-2520.77887688,0.00015464,2]
[401398440,1768181438961,-2500.0,0.00015464,2]
[401398441,1768181438970,-720.0,0.00015782,2]
[401398442,1768181438980,-514.84070869,0.00015806,2]
[401398443,1768181438989,-500.0,0.00015806,2]
[401398444,1768181438998,-500.0,0.00015806,2]
[401398445,1768181439008,-500.0,0.00015806,2]
[401398446,1768181439020,-500.0,0.00015806,2]